bitfinex-derivatives/quotes_BTCF0:USTF0_20251228
["timestamp","ask_amount","ask_price","bid_price","bid_amount"]
[1766931303088,0.15352,88037.0,88009.0,0.0113703]
[1766931303288,0.02497058,88036.0,88021.0,0.0113688]
[1766931303489,0.02497058,88035.0,88008.0,0.06124214]
[1766931303693,0.02497058,88034.0,88008.0,0.06124214]
[1766931303891,0.17849058,88033.0,88008.0,0.06124214]
[1766931304192,0.02497058,88032.0,88008.0,0.06124214]
[1766931304893,0.02497058,88032.0,88019.0,0.011369]
[1766931307096,0.02497058,88032.0,88021.0,0.0113688]
[1766931308992,0.02497058,88032.0,88018.0,0.0113691]
[1766931309395,0.02497058,88032.0,88020.0,0.0113688]
[1766931311697,0.02497058,88032.0,88008.0,0.0113705]
[1766931311903,0.17849058,88031.0,88007.0,0.05688]
[1766931312200,0.02497058,88030.0,88021.0,0.0113687]
[1766931314902,0.15352,88031.0,88021.0,0.0113687]
[1766931318006,0.15352,88031.0,88010.0,0.0113702]
[1766931318703,0.00017045,88038.0,88010.0,0.0113702]
[1766931319004,0.17850481,88037.0,88010.0,0.0113702]
[1766931319201,0.02498481,88036.0,88020.0,0.0113689]
[1766931321106,0.011367,88035.0,88017.0,0.0113693]
[1766931321305,0.011367,88035.0,88014.0,0.0113697]
[1766931321306,0.02498481,88034.0,88014.0,0.0113697]
[1766931321493,0.02498481,88033.0,88014.0,0.0113697]
[1766931321696,0.011367,88035.0,88014.0,0.0113697]
[1766931321896,0.02495682,88034.0,88014.0,0.0113697]
[1766931322098,0.02495682,88033.0,88014.0,0.0113697]
[1766931322297,0.02495682,88032.0,88014.0,0.0113697]
[1766931322501,0.05688,88031.0,88014.0,0.0113697]
[1766931327814,0.05688,88031.0,88012.0,0.01137]
[1766931328515,0.05688,88031.0,88014.0,0.0113697]
[1766931331223,0.02495471,88030.0,88014.0,0.0113697]
[1766931331407,0.05688,88031.0,88014.0,0.0113697]
[1766931331609,0.02495471,88030.0,88014.0,0.0113697]
[1766931331813,0.05688,88031.0,88014.0,0.0113697]
[1766931332013,0.02495471,88030.0,88014.0,0.0113697]
[1766931332214,0.05688,88031.0,88014.0,0.0113697]
[1766931332508,0.02495452,88030.0,88014.0,0.0113697]
[1766931332716,0.05688,88031.0,88014.0,0.0113697]
[1766931333017,0.02495452,88030.0,88014.0,0.0113697]
[1766931333216,0.05688,88031.0,88014.0,0.0113697]
[1766931333417,0.02495438,88030.0,88014.0,0.0113697]
[1766931333616,0.05688,88031.0,88014.0,0.0113697]
[1766931333816,0.02495438,88030.0,88014.0,0.0113697]
[1766931334017,0.05688,88031.0,88014.0,0.0113697]
[1766931334218,0.02495438,88030.0,88014.0,0.0113697]
[1766931334418,0.05688,88031.0,88014.0,0.0113697]
[1766931334721,0.02495423,88030.0,88014.0,0.0113697]
[1766931334921,0.05688,88031.0,88014.0,0.0113697]
[1766931335219,0.02495423,88030.0,88014.0,0.0113697]
[1766931335410,0.05688,88031.0,88014.0,0.0113697]
[1766931335607,0.0249541,88030.0,88014.0,0.0113697]
[1766931335811,0.05688,88031.0,88016.0,0.0113694]
[1766931336011,0.0249541,88030.0,88018.0,0.0113692]
[1766931336221,0.05688,88031.0,88018.0,0.0113692]
[1766931336424,0.02495399,88030.0,88018.0,0.0113692]
[1766931336617,0.05688,88031.0,88018.0,0.0113692]
[1766931336808,0.02495399,88030.0,88018.0,0.0113692]
[1766931337012,0.05688,88031.0,88016.0,0.0113694]
[1766931337212,0.02495399,88030.0,88016.0,0.0113694]
[1766931337414,0.05688,88031.0,88016.0,0.0113694]
[1766931337614,0.02495392,88030.0,88017.0,0.0113693]
[1766931337914,0.05688,88031.0,88017.0,0.0113693]
[1766931338120,0.02495391,88030.0,88017.0,0.0113693]
[1766931338320,0.05688,88031.0,88017.0,0.0113693]
[1766931338622,0.02495386,88030.0,88017.0,0.0113693]
[1766931338819,0.05688,88031.0,88017.0,0.0113693]
[1766931339027,0.02495386,88030.0,88017.0,0.0113693]
[1766931339321,0.05688,88031.0,88017.0,0.0113693]
[1766931339523,0.02495383,88030.0,88017.0,0.0113693]
[1766931339721,0.05688,88031.0,88017.0,0.0113693]
[1766931340024,0.02495383,88030.0,88017.0,0.0113693]
[1766931340219,0.05688,88031.0,88017.0,0.0113693]
[1766931340426,0.02495387,88030.0,88017.0,0.0113693]
[1766931340722,0.05688,88031.0,88017.0,0.0113693]
[1766931340923,0.02495387,88030.0,88017.0,0.0113693]
[1766931341125,0.05688,88031.0,88017.0,0.0113693]
[1766931341427,0.02495394,88030.0,88017.0,0.0113693]
[1766931341620,0.05688,88031.0,88017.0,0.0113693]
[1766931341821,0.02495394,88030.0,88017.0,0.0113693]
[1766931342127,0.05688,88031.0,88017.0,0.0113693]
[1766931342322,0.0249541,88030.0,88017.0,0.0113693]
[1766931342522,0.05688,88031.0,88017.0,0.0113693]
[1766931342726,0.0249541,88030.0,88017.0,0.0113693]
[1766931342916,0.05688,88031.0,88017.0,0.0113693]
[1766931343117,0.0249541,88030.0,88017.0,0.0113693]
[1766931343326,0.05688,88031.0,88017.0,0.0113693]
[1766931343628,0.02495427,88030.0,88017.0,0.0113693]
[1766931343822,0.05688,88031.0,88017.0,0.0113693]
[1766931344024,0.02495427,88030.0,88017.0,0.0113693]
[1766931344227,0.05688,88031.0,88017.0,0.0113693]
[1766931344417,0.02495446,88030.0,88017.0,0.0113693]
[1766931344618,0.05688,88031.0,88019.0,0.0113691]
[1766931344919,0.02495446,88030.0,88019.0,0.0113691]
[1766931345123,0.05688,88031.0,88019.0,0.0113691]
[1766931345420,0.02495463,88030.0,88019.0,0.0113691]
[1766931345621,0.05688,88031.0,88019.0,0.0113691]
[1766931345814,0.0249547,88030.0,88019.0,0.0113691]
[1766931346013,0.05688,88031.0,88019.0,0.0113691]
[1766931346327,0.0249547,88030.0,88019.0,0.0113691]
[1766931346630,0.05688,88031.0,88019.0,0.0113691]
[1766931346927,0.02495498,88030.0,88019.0,0.0113691]
[1766931347117,0.05688,88031.0,88019.0,0.0113691]
[1766931347319,0.02495498,88030.0,88019.0,0.0113691]
[1766931347519,0.05688,88031.0,88019.0,0.0113691]
[1766931347819,0.0249553,88030.0,88019.0,0.0113691]
[1766931348019,0.05688,88031.0,88019.0,0.0113691]
[1766931348225,0.0249553,88030.0,88016.0,0.0113694]
[1766931348426,0.05688,88031.0,88018.0,0.0113692]
[1766931348627,0.02495569,88030.0,88018.0,0.0113692]
[1766931348928,0.05688,88031.0,88018.0,0.0113692]
[1766931349128,0.02495569,88030.0,88018.0,0.0113692]
[1766931349328,0.05688,88031.0,88018.0,0.0113692]
[1766931349530,0.02495612,88030.0,88018.0,0.0113692]
[1766931349830,0.05688,88031.0,88018.0,0.0113692]
[1766931350129,0.02493838,88030.0,88020.0,0.0113689]
[1766931350431,0.05688,88031.0,88020.0,0.0113689]
[1766931350725,0.02493887,88030.0,88018.0,0.0113692]
[1766931350930,0.05688,88031.0,88018.0,0.0113692]
[1766931351132,0.02493887,88030.0,88018.0,0.0113692]
[1766931351325,0.05688,88031.0,88012.0,0.01137]
[1766931351530,0.05688,88031.0,88011.0,0.06124214]
[1766931351721,0.05688,88031.0,88021.0,0.0113687]
[1766931352031,0.00017045,88038.0,88021.0,0.0113687]
[1766931352233,0.17845686,88037.0,88021.0,0.0113687]
[1766931352533,0.02493686,88036.0,88021.0,0.0113687]
[1766931352726,0.17845686,88035.0,88023.0,0.0113685]
[1766931352933,0.02493686,88034.0,88023.0,0.0113685]
[1766931353134,0.15352,88035.0,88023.0,0.0113685]
[1766931353333,0.0249349,88034.0,88023.0,0.0113685]
[1766931353533,0.15352,88035.0,88023.0,0.0113685]
[1766931353745,0.02493266,88034.0,88023.0,0.0113685]
[1766931354032,0.15352,88035.0,88023.0,0.0113685]
[1766931354231,0.02493266,88034.0,88023.0,0.0113685]
[1766931354432,0.15352,88035.0,88023.0,0.0113685]
[1766931354642,0.024931,88034.0,88023.0,0.0113685]
[1766931354936,0.024931,88033.0,88023.0,0.0113685]
[1766931355124,0.15352,88035.0,88023.0,0.0113685]
[1766931355325,0.024931,88034.0,88023.0,0.0113685]
[1766931355525,0.024931,88033.0,88023.0,0.0113685]
[1766931355734,0.15352,88035.0,88023.0,0.0113685]
[1766931355936,0.02492971,88034.0,88023.0,0.0113685]
[1766931356131,0.12156971,88033.0,88023.0,0.0113685]
[1766931356433,0.09664,88033.0,88023.0,0.0113685]
[1766931359143,0.09664,88033.0,88010.0,0.0113702]
[1766931359531,0.09664,88033.0,88023.0,0.0113685]
[1766931361742,0.09664,88033.0,88025.0,0.0113682]
[1766931364045,0.09664,88033.0,88022.0,0.0113686]
[1766931366846,0.00017045,88038.0,88022.0,0.0113686]
[1766931367141,0.17844465,88037.0,88022.0,0.0113686]
[1766931367343,0.02492465,88036.0,88022.0,0.0113686]
[1766931373846,0.02492465,88036.0,88012.0,0.06124214]
[1766931374749,0.02492465,88036.0,88022.0,0.0113686]
[1766931377045,0.02492465,88036.0,88012.0,0.06124214]
[1766931377248,0.05688,88036.0,88030.0,0.0113676]
[1766931382655,0.05705045,88038.0,88030.0,0.0113676]
[1766931383952,5e-08,88038.0,88032.0,0.0113673]
[1766931386743,5e-08,88038.0,88029.0,0.0113678]
[1766931389658,5e-08,88038.0,88031.0,0.0113674]
[1766931395764,5e-08,88038.0,88025.0,0.00017045]
[1766931395765,5e-08,88038.0,88028.0,0.0113679]
[1766931406880,5e-08,88038.0,88025.0,0.01153875]
[1766931407585,5e-08,88038.0,88027.0,0.011368]
[1766931412689,5e-08,88038.0,88025.0,0.00017045]
[1766931413183,5e-08,88038.0,88026.0,0.0113682]
[1766931415092,5e-08,88038.0,88025.0,0.00017045]
[1766931418996,5e-08,88038.0,88014.0,0.0113697]
[1766931419196,0.0113672,88034.0,88014.0,0.0113697]
[1766931419500,0.0113672,88034.0,88013.0,0.15352]
[1766931420096,0.0113675,88032.0,88013.0,0.15352]
[1766931420508,0.0113671,88035.0,88013.0,0.15352]
[1766931421506,0.0113674,88033.0,88013.0,0.15352]
[1766931422408,0.0113676,88031.0,88013.0,0.15352]
[1766931423203,0.0113679,88029.0,88013.0,0.15352]
[1766931423807,0.0113682,88026.0,88013.0,0.15352]
[1766931424209,0.0113682,88026.0,88009.0,0.05688]
[1766931424406,0.01153865,88026.0,88009.0,0.05688]
[1766931424802,0.00017045,88026.0,88009.0,0.05688]
[1766931427707,0.0113679,88029.0,88009.0,0.05688]
[1766931427899,0.1080075,88032.0,88009.0,0.0682503]
[1766931428806,0.00017045,88029.0,88012.0,0.00017045]
[1766931440311,0.00017045,88029.0,88012.0,0.01154035]
[1766931441303,0.00017045,88029.0,88012.0,0.00017045]
[1766931445005,0.01153835,88029.0,88012.0,0.00017045]
[1766931450418,0.0113681,88027.0,88012.0,0.00017045]
[1766931451719,0.00017045,88029.0,88012.0,0.00017045]
[1766931451917,0.01153835,88029.0,88012.0,0.00017045]
[1766931453619,0.0113681,88027.0,88012.0,0.00017045]
[1766931459426,0.09664,88028.0,88012.0,0.00017045]
[1766931460224,0.15352,88028.0,88012.0,0.00017045]
[1766931464724,0.0113681,88027.0,88012.0,0.00017045]
[1766931467324,0.15352,88028.0,88012.0,0.00017045]
[1766931467525,0.15352,88028.0,88003.0,0.06124214]
[1766931467726,0.00017045,88029.0,88008.0,0.0113704]
[1766931468028,0.05688,88027.0,88008.0,0.0113704]
[1766931476535,0.05688,88027.0,88008.0,0.07261254]
[1766931481845,0.00017045,88029.0,88005.0,0.09664]
[1766931482341,0.00017045,88029.0,88016.0,0.0113694]
[1766931486943,0.00017045,88029.0,88017.0,0.01777432]
[1766931487147,0.00017045,88029.0,88018.0,0.01777432]
[1766931487438,0.00017045,88029.0,88019.0,0.01777432]
[1766931487639,0.00017045,88029.0,88020.0,0.01777432]
[1766931487844,0.00017045,88029.0,88021.0,0.01777432]
[1766931488045,0.00017045,88029.0,88016.0,0.0113694]
[1766931488345,0.00017045,88029.0,88018.0,0.0113691]
[1766931488642,0.0113666,88039.0,88020.0,0.0113689]
[1766931488845,0.17805976,88038.0,88020.0,0.0113689]
[1766931489044,0.02453976,88037.0,88017.0,0.0113693]
[1766931489243,0.02453976,88036.0,88017.0,0.0113693]
[1766931489546,0.02453976,88035.0,88017.0,0.0113693]
[1766931489748,0.02453976,88034.0,88017.0,0.01153975]
[1766931490049,0.00017045,88035.0,88017.0,0.01153975]
[1766931491048,0.00017045,88035.0,88019.0,0.011369]
[1766931491854,0.02453442,88034.0,88019.0,0.011369]
[1766931492040,0.00017045,88035.0,88019.0,0.011369]
[1766931492241,0.02453442,88034.0,88019.0,0.011369]
[1766931492449,0.00017045,88035.0,88019.0,0.011369]
[1766931492643,0.02453347,88034.0,88019.0,0.011369]
[1766931492948,0.00017045,88035.0,88019.0,0.011369]
[1766931493248,0.02453347,88034.0,88019.0,0.011369]
[1766931493441,0.00017045,88035.0,88019.0,0.011369]
[1766931493636,0.0245327,88034.0,88017.0,0.00017045]
[1766931493841,0.00017045,88035.0,88020.0,0.0113689]
[1766931494654,0.00017045,88035.0,88017.0,0.00017045]
[1766931494655,0.00017045,88035.0,88017.0,0.01153975]
[1766931499248,0.00017045,88035.0,88019.0,0.011369]
[1766931502460,0.00017045,88035.0,88017.0,0.00017045]
[1766931503952,0.02446092,88034.0,88017.0,0.00017045]
[1766931504156,0.00017045,88035.0,88017.0,0.00017045]
[1766931504357,0.02446124,88034.0,88017.0,0.00017045]
[1766931504560,0.00017045,88035.0,88017.0,0.00017045]
[1766931504761,0.02446124,88034.0,88017.0,0.00017045]
[1766931505056,0.00017045,88035.0,88017.0,0.00017045]
[1766931505259,0.02446124,88034.0,88017.0,0.00017045]
[1766931505460,0.00017045,88035.0,88018.0,0.0113692]
[1766931505656,0.02446164,88034.0,88018.0,0.0113692]
[1766931505856,0.00017045,88035.0,88018.0,0.0113692]
[1766931506060,0.02446164,88034.0,88018.0,0.0113692]
[1766931506260,0.00017045,88035.0,88018.0,0.0113692]
[1766931506461,0.02446216,88034.0,88018.0,0.0113692]
[1766931506657,0.00017045,88035.0,88018.0,0.0113692]
[1766931506857,0.02446216,88034.0,88018.0,0.0113692]
[1766931507156,0.00017045,88035.0,88018.0,0.0113692]
[1766931507364,0.00017045,88035.0,88020.0,0.0113689]
[1766931509365,0.02446431,88034.0,88017.0,0.01153975]
[1766931509667,0.00017045,88035.0,88017.0,0.01153975]
[1766931509864,0.02446445,88034.0,88017.0,0.01153975]
[1766931510163,0.00017045,88035.0,88017.0,0.01153975]
[1766931510364,0.02446457,88034.0,88017.0,0.01153975]
[1766931510565,0.00017045,88035.0,88017.0,0.01153975]
[1766931510761,0.02446457,88034.0,88017.0,0.01153975]
[1766931510962,0.00017045,88035.0,88017.0,0.01153975]
[1766931511162,0.02446457,88034.0,88017.0,0.01153975]
[1766931511463,0.00017045,88035.0,88017.0,0.01153975]
[1766931511668,0.02446573,88034.0,88019.0,0.011369]
[1766931511963,0.00017045,88035.0,88019.0,0.011369]
[1766931512265,0.02446573,88034.0,88019.0,0.011369]
[1766931512466,0.00017045,88035.0,88019.0,0.011369]
[1766931512665,0.02446624,88034.0,88019.0,0.011369]
[1766931512866,0.00017045,88035.0,88019.0,0.011369]
[1766931513059,0.02446624,88034.0,88021.0,0.0113688]
[1766931513258,0.00017045,88035.0,88021.0,0.0113688]
[1766931513562,0.02446679,88034.0,88021.0,0.0113688]
[1766931513762,0.00017045,88035.0,88021.0,0.0113688]
[1766931513961,0.02446679,88034.0,88021.0,0.0113688]
[1766931514163,0.00017045,88035.0,88021.0,0.0113688]
[1766931514365,0.02446749,88034.0,88021.0,0.0113688]
[1766931514565,0.00017045,88035.0,88021.0,0.0113688]
[1766931514767,0.02446749,88034.0,88021.0,0.0113688]
[1766931514964,0.00017045,88035.0,88021.0,0.0113688]
[1766931515271,0.02446749,88034.0,88021.0,0.0113688]
[1766931515569,0.00017045,88035.0,88021.0,0.0113688]
[1766931515771,0.02446837,88034.0,88021.0,0.0113688]
[1766931515970,0.00017045,88035.0,88021.0,0.0113688]
[1766931516270,0.02446837,88034.0,88021.0,0.0113688]
[1766931516573,0.02446837,88033.0,88018.0,0.0113692]
[1766931516767,0.00017045,88035.0,88018.0,0.0113692]
[1766931517072,0.02446956,88034.0,88018.0,0.0113692]
[1766931517270,0.02446956,88033.0,88018.0,0.0113692]
[1766931517471,0.00017045,88035.0,88018.0,0.0113692]
[1766931517664,0.02447104,88034.0,88018.0,0.0113692]
[1766931517864,0.02447104,88033.0,88018.0,0.0113692]
[1766931518164,0.00017045,88035.0,88018.0,0.0113692]
[1766931518367,0.02447362,88034.0,88018.0,0.0113692]
[1766931518568,0.02447362,88033.0,88018.0,0.0113692]
[1766931518769,0.02447362,88032.0,88018.0,0.0113692]
[1766931518968,0.00017045,88035.0,88018.0,0.0113692]
[1766931519275,0.02447362,88034.0,88018.0,0.0113692]
[1766931519469,0.02447362,88033.0,88018.0,0.0113692]
[1766931519671,0.02447362,88032.0,88018.0,0.0113692]
[1766931519872,0.00017045,88035.0,88018.0,0.0113692]
[1766931520167,0.02447352,88034.0,88018.0,0.0113692]
[1766931520377,0.02447352,88033.0,88018.0,0.0113692]
[1766931520569,0.02447352,88032.0,88018.0,0.0113692]
[1766931520772,0.00017045,88035.0,88018.0,0.0113692]
[1766931520972,0.02447342,88034.0,88018.0,0.0113692]
[1766931521169,0.02447342,88033.0,88018.0,0.0113692]
[1766931521368,0.02447342,88032.0,88018.0,0.0113692]
[1766931521575,0.00017045,88035.0,88018.0,0.0113692]
[1766931521776,0.02447334,88034.0,88018.0,0.0113692]
[1766931521966,0.02447334,88033.0,88018.0,0.0113692]
[1766931522167,0.02447334,88032.0,88018.0,0.0113692]
[1766931522367,0.00017045,88035.0,88018.0,0.0113692]
[1766931522576,0.02447326,88034.0,88018.0,0.0113692]
[1766931522769,0.02447326,88033.0,88018.0,0.0113692]
[1766931522973,0.02447326,88032.0,88018.0,0.0113692]
[1766931523167,0.00017045,88035.0,88018.0,0.0113692]
[1766931523364,0.02447316,88034.0,88017.0,0.00017045]
[1766931523576,0.02447316,88033.0,88017.0,0.00017045]
[1766931523777,0.02447316,88032.0,88017.0,0.00017045]
[1766931523978,0.00017045,88035.0,88017.0,0.00017045]
[1766931524177,0.02447343,88034.0,88017.0,0.00017045]
[1766931524379,0.02447343,88033.0,88017.0,0.00017045]
[1766931524568,0.02447343,88032.0,88017.0,0.00017045]
[1766931524770,0.00017045,88035.0,88017.0,0.00017045]
[1766931524978,0.02447311,88034.0,88017.0,0.00017045]
[1766931525277,0.00017045,88035.0,88017.0,0.00017045]
[1766931525278,0.02447311,88033.0,88017.0,0.00017045]
[1766931525469,0.02447311,88032.0,88017.0,0.00017045]
[1766931525669,0.00017045,88035.0,88017.0,0.00017045]
[1766931525963,0.02447284,88034.0,88017.0,0.00017045]
[1766931526167,0.02447284,88033.0,88017.0,0.00017045]
[1766931526367,0.02447284,88032.0,88017.0,0.00017045]
[1766931526667,0.00017045,88035.0,88017.0,0.00017045]
[1766931526864,0.02447263,88034.0,88017.0,0.00017045]
[1766931527063,0.02447263,88033.0,88017.0,0.00017045]
[1766931527263,0.02447263,88032.0,88017.0,0.00017045]
[1766931527468,0.00017045,88035.0,88017.0,0.01153975]
[1766931527668,0.02447248,88034.0,88017.0,0.01153975]
[1766931527871,0.02447248,88033.0,88017.0,0.01153975]
[1766931528073,0.02447248,88032.0,88017.0,0.01153975]
[1766931528373,0.00017045,88035.0,88017.0,0.01153975]
[1766931528569,0.02447236,88034.0,88017.0,0.01153975]
[1766931528770,0.02447236,88033.0,88017.0,0.01153975]
[1766931528971,0.02447236,88032.0,88019.0,0.011369]
[1766931529177,0.00017045,88035.0,88017.0,0.00017045]
[1766931529478,0.02447225,88034.0,88017.0,0.00017045]
[1766931529679,0.02447225,88033.0,88018.0,0.0113692]
[1766931529878,0.02447225,88032.0,88018.0,0.0113692]
[1766931530084,0.00017045,88035.0,88018.0,0.0113692]
[1766931530281,0.02449853,88034.0,88018.0,0.0113692]
[1766931530578,0.02449853,88033.0,88018.0,0.0113692]
[1766931530779,0.02449853,88032.0,88018.0,0.0113692]
[1766931530981,0.00017045,88035.0,88018.0,0.0113692]
[1766931531180,0.02449846,88034.0,88018.0,0.0113692]
[1766931531482,0.02449846,88033.0,88018.0,0.0113692]
[1766931531678,0.02449846,88032.0,88018.0,0.0113692]
[1766931531979,0.00017045,88035.0,88018.0,0.0113692]
[1766931532177,0.02449841,88034.0,88018.0,0.0113692]
[1766931532378,0.02449841,88033.0,88018.0,0.0113692]
[1766931532581,0.02449841,88032.0,88018.0,0.0113692]
[1766931532772,0.00017045,88035.0,88018.0,0.0113692]
[1766931532968,0.02449836,88034.0,88018.0,0.0113692]
[1766931533172,0.02449836,88033.0,88018.0,0.0113692]
[1766931533372,0.02449836,88032.0,88018.0,0.0113692]
[1766931533672,0.00017045,88035.0,88018.0,0.0113692]
[1766931533874,0.02449835,88034.0,88018.0,0.0113692]
[1766931534180,0.02449835,88033.0,88018.0,0.0113692]
[1766931534373,0.02449835,88032.0,88018.0,0.0113692]
[1766931534572,0.00017045,88035.0,88020.0,0.0113689]
[1766931534773,0.02449833,88034.0,88020.0,0.0113689]
[1766931535080,0.02449833,88033.0,88020.0,0.0113689]
[1766931535283,0.02449833,88032.0,88020.0,0.0113689]
[1766931535473,0.02449833,88031.0,88020.0,0.0113689]
[1766931535673,0.02449833,88030.0,88020.0,0.0113689]
[1766931535874,0.00017045,88035.0,88020.0,0.0113689]
[1766931536073,0.02449831,88034.0,88020.0,0.0113689]
[1766931536275,0.02449831,88033.0,88020.0,0.0113689]
[1766931536482,0.02449831,88032.0,88020.0,0.0113689]
[1766931536683,0.02449831,88031.0,88020.0,0.0113689]
[1766931536983,0.02449831,88030.0,88020.0,0.0113689]
[1766931537185,0.00017045,88035.0,88020.0,0.0113689]
[1766931537386,0.02449844,88034.0,88020.0,0.0113689]
[1766931537585,0.02449844,88033.0,88020.0,0.0113689]
[1766931537783,0.02449844,88032.0,88020.0,0.0113689]
[1766931537982,0.02449844,88031.0,88020.0,0.0113689]
[1766931538182,0.02449844,88030.0,88020.0,0.0113689]
[1766931538386,0.00017045,88035.0,88020.0,0.0113689]
[1766931538575,0.02449852,88034.0,88020.0,0.0113689]
[1766931538776,0.02449852,88033.0,88020.0,0.0113689]
[1766931538982,0.02449852,88032.0,88020.0,0.0113689]
[1766931539184,0.02449852,88031.0,88020.0,0.0113689]
[1766931539383,0.02449852,88030.0,88020.0,0.0113689]
[1766931539687,0.00017045,88035.0,88020.0,0.0113689]
[1766931539987,0.02449858,88034.0,88020.0,0.0113689]
[1766931540187,0.02449858,88033.0,88020.0,0.0113689]
[1766931540378,0.02449858,88032.0,88020.0,0.0113689]
[1766931540578,0.02449863,88031.0,88020.0,0.0113689]
[1766931540778,0.02449863,88030.0,88020.0,0.0113689]
[1766931540978,0.00017045,88035.0,88020.0,0.0113689]
[1766931541273,0.02449864,88034.0,88020.0,0.0113689]
[1766931541484,0.02449864,88033.0,88020.0,0.0113689]
[1766931541685,0.02449864,88032.0,88020.0,0.0113689]
[1766931541885,0.02449864,88031.0,88020.0,0.0113689]
[1766931542085,0.02449864,88030.0,88020.0,0.0113689]
[1766931542286,0.00017045,88035.0,88020.0,0.0113689]
[1766931542486,0.02449877,88034.0,88020.0,0.0113689]
[1766931542683,0.02449877,88033.0,88020.0,0.0113689]
[1766931542888,0.02449877,88032.0,88020.0,0.0113689]
[1766931543079,0.00017045,88035.0,88020.0,0.0113689]
[1766931543080,0.02449877,88031.0,88020.0,0.0113689]
[1766931543282,0.02449877,88030.0,88019.0,0.011369]
[1766931543581,0.00017045,88035.0,88019.0,0.011369]
[1766931543781,0.02449894,88034.0,88019.0,0.011369]
[1766931544082,0.02449894,88033.0,88019.0,0.011369]
[1766931544380,0.02449894,88032.0,88017.0,0.00017045]
[1766931544580,0.02449894,88031.0,88017.0,0.00017045]
[1766931544782,0.02449894,88030.0,88017.0,0.00017045]
[1766931544983,0.00017045,88035.0,88017.0,0.00017045]
[1766931545183,0.0244991,88034.0,88017.0,0.00017045]
[1766931545384,0.0244991,88033.0,88017.0,0.00017045]
[1766931545686,0.0244991,88032.0,88017.0,0.00017045]
[1766931545888,0.00017045,88035.0,88017.0,0.00017045]
[1766931546188,0.02449931,88034.0,88017.0,0.00017045]
[1766931546388,0.02449931,88033.0,88018.0,0.0113692]
[1766931546583,0.02449931,88032.0,88018.0,0.0113692]
[1766931546782,0.00017045,88035.0,88018.0,0.0113692]
[1766931546985,0.02449956,88034.0,88018.0,0.0113692]
[1766931547188,0.02449956,88033.0,88018.0,0.0113692]
[1766931547388,0.02449956,88032.0,88018.0,0.0113692]
[1766931547590,0.00017045,88035.0,88018.0,0.0113692]
[1766931547783,0.02449964,88034.0,88017.0,0.00017045]
[1766931547983,0.02449964,88033.0,88017.0,0.00017045]
[1766931548182,0.02449964,88032.0,88017.0,0.00017045]
[1766931548392,0.00017045,88035.0,88017.0,0.00017045]
[1766931548583,0.02449974,88034.0,88017.0,0.00017045]
[1766931548785,0.02449974,88033.0,88017.0,0.00017045]
[1766931549089,0.02449974,88032.0,88017.0,0.00017045]
[1766931549288,0.01153755,88035.0,88017.0,0.00017045]
[1766931549489,0.02449987,88034.0,88017.0,0.00017045]
[1766931549683,0.02449987,88033.0,88017.0,0.00017045]
[1766931549884,0.02449987,88032.0,88017.0,0.00017045]
[1766931550081,0.00017045,88035.0,88017.0,0.00017045]
[1766931550291,0.02449989,88034.0,88017.0,0.00017045]
[1766931550494,0.02449989,88033.0,88017.0,0.00017045]
[1766931550685,0.02449989,88032.0,88017.0,0.00017045]
[1766931550884,0.00017045,88035.0,88017.0,0.00017045]
[1766931551086,0.02450001,88034.0,88017.0,0.00017045]
[1766931551286,0.02450001,88033.0,88017.0,0.00017045]
[1766931551490,0.02450001,88032.0,88017.0,0.00017045]
[1766931551686,0.00017045,88035.0,88017.0,0.01153975]
[1766931551890,0.02450021,88034.0,88017.0,0.01153975]
[1766931552093,0.02450021,88033.0,88017.0,0.01153975]
[1766931552395,0.02450021,88032.0,88017.0,0.01153975]
[1766931552599,0.00017045,88035.0,88017.0,0.01153975]
[1766931552795,0.02450047,88034.0,88017.0,0.01153975]
[1766931553010,0.02450047,88033.0,88017.0,0.01153975]
[1766931553297,0.02450047,88032.0,88017.0,0.01153975]
[1766931553496,0.00017045,88035.0,88017.0,0.01153975]
[1766931553696,0.02450075,88034.0,88017.0,0.01153975]
[1766931553883,0.02450075,88033.0,88017.0,0.01153975]
[1766931554088,0.02450075,88032.0,88017.0,0.01153975]
[1766931554288,0.00017045,88035.0,88017.0,0.01153975]
[1766931554489,0.02450075,88034.0,88017.0,0.01153975]
[1766931554797,0.02450075,88033.0,88017.0,0.01153975]
[1766931554990,0.02450075,88032.0,88017.0,0.01153975]
[1766931555192,0.00017045,88035.0,88017.0,0.01153975]
[1766931555392,0.02450075,88034.0,88017.0,0.01153975]
[1766931555691,0.02450075,88033.0,88017.0,0.01153975]
[1766931555891,0.02450075,88032.0,88017.0,0.01153975]
[1766931556084,0.00017045,88035.0,88017.0,0.01153975]
[1766931556288,0.02450076,88034.0,88017.0,0.01153975]
[1766931556495,0.02450076,88033.0,88017.0,0.01153975]
[1766931556696,0.02450076,88032.0,88017.0,0.01153975]
[1766931556900,0.00017045,88035.0,88017.0,0.01153975]
[1766931557101,0.02450076,88034.0,88017.0,0.01153975]
[1766931557300,0.02450076,88033.0,88017.0,0.01153975]
[1766931557500,0.02450076,88032.0,88017.0,0.01153975]
[1766931557702,0.00017045,88035.0,88017.0,0.01153975]
[1766931558000,0.02450076,88034.0,88017.0,0.01153975]
[1766931558200,0.02450076,88033.0,88017.0,0.01153975]
[1766931558399,0.02450076,88032.0,88017.0,0.01153975]
[1766931558697,0.00017045,88035.0,88017.0,0.01153975]
[1766931558895,0.02450076,88034.0,88017.0,0.01153975]
[1766931559091,0.02450076,88033.0,88017.0,0.01153975]
[1766931559302,0.02450076,88032.0,88017.0,0.01153975]
[1766931559502,0.00017045,88035.0,88017.0,0.01153975]
[1766931559703,0.02450076,88034.0,88017.0,0.01153975]
[1766931559904,0.02450076,88033.0,88017.0,0.01153975]
[1766931560113,0.02450076,88032.0,88017.0,0.01153975]
[1766931560313,0.00017045,88035.0,88017.0,0.01153975]
[1766931560519,0.0243379,88034.0,88017.0,0.01153975]
[1766931560819,0.0243379,88033.0,88017.0,0.01153975]
[1766931561018,0.0243379,88032.0,88017.0,0.01153975]
[1766931561320,0.00017045,88035.0,88017.0,0.01153975]
[1766931561519,0.0243379,88034.0,88017.0,0.01153975]
[1766931561721,0.0243379,88033.0,88017.0,0.01153975]
[1766931561909,0.0243379,88032.0,88017.0,0.01153975]
[1766931562111,0.00017045,88035.0,88017.0,0.01153975]
[1766931562408,0.02433791,88034.0,88017.0,0.01153975]
[1766931562608,0.02433791,88033.0,88017.0,0.01153975]
[1766931562820,0.02433791,88032.0,88017.0,0.01153975]
[1766931563024,0.00017045,88035.0,88017.0,0.01153975]
[1766931563220,0.02433818,88034.0,88017.0,0.01153975]
[1766931563422,0.02433818,88033.0,88017.0,0.01153975]
[1766931563623,0.02433818,88032.0,88019.0,0.011369]
[1766931563922,0.00017045,88035.0,88019.0,0.011369]
[1766931564124,0.02433794,88034.0,88019.0,0.011369]
[1766931564325,0.02433794,88033.0,88019.0,0.011369]
[1766931564623,0.02433794,88032.0,88019.0,0.011369]
[1766931564818,0.00017045,88035.0,88019.0,0.011369]
[1766931565007,0.02433779,88034.0,88019.0,0.011369]